[Event "1st Sivas Buruciye Open 2019"]
[Site "Sivas"]
[Date "2019.08.21"]
[Round "4"]
[White "Shahlarov, Faig"]
[Black "Basaran, Cahit"]
[Result "1-0"]
[ECO "D00"]
[WhiteElo "1798"]
[BlackElo "1834"]
[Annotator "NA"]
[PlyCount "157"]
[EventDate "2019.08.19"]
[EventType "swiss"]
[EventCountry "TUR"]
[SourceTitle "playchess.com"]
[Source "ChessBase"]
[SourceQuality "1"]
[TimeControl "5400+30"]

1. d4 {[%emt 0:00:30]} d5 {[%emt 0:04:30]} 2. Nc3 {[%emt 0:00:00]} Nf6 {[%emt 0:00:30]} 3. Bf4 {[%emt 0:00:00]} c6 {[%emt 0:00:30]} 4. e3 {[%emt 0:00:00]} e6 {[%emt 0:00:00]} (4... Bf5 5. Nf3 h6 6. Ne5 Nbd7 7. g4 Bh7 8. h4 Nxe5 9. dxe5 Ne4 10. Nxe4 Bxe4 11. f3 Bh7 12. e6 {1-0 (57) Bortnyk,O (2610)-Dreev,A (2653) Riadh 2017}) 5. Bd3 {[%emt 0:01:00]} Bd6 {[%emt 0:00:00]} 6. Nge2 {[%emt 0:08:30] D00: 1 d4 d5: Unusual lines} Bxf4 {[%emt 0:02:30]} 7. Nxf4 {[%emt 0:00:30]} Nbd7 {[%emt 0:00:30]} 8. Nh5 {[%emt 0:07:30]} Nxh5 $146 {[%emt 0:04:30]} ({Predecessor:} 8... O-O 9. Nxf6+ Nxf6 10. f4 Nd7 11. e4 f5 12. e5 {1-0 (85) Batabaev,M (2053)-Abdurahmanov,A Bishkek 2013}) 9. Qxh5 {[%emt 0:00:30]} Nf6 {[%emt 0:00:00]} 10. Qh4 {[%emt 0:01:30]} h6 {[%emt 0:09:00]} 11. f4 {[%emt 0:01:30]} Bd7 {[%emt 0:03:30]} 12. g4 {[%emt 0:00:30]} Nh7 {[%emt 0:00:30]} 13. Qxd8+ {[%emt 0:00:30]} Rxd8 {[%emt 0:00:30]} 14. Bxh7 {[%emt 0:00:30]} Rxh7 {[%emt 0:00:30]} 15. h4 {[%emt 0:00:30]} f6 {[%emt 0:00:30]} 16. Nd1 {[%emt 0:00:30]} e5 {[%emt 0:00:30]} 17. Nf2 {[%emt 0:00:30]} e4 {[%emt 0:00:30]} 18. h5 {[%emt 0:03:30]} Kf7 {[%emt 0:15:30]} 19. f5 {[%emt 0:01:30]} Rhh8 {[%emt 0:00:30]} 20. Nh3 {[%emt 0:01:30]} Ke7 {[%emt 0:02:30]} 21. Nf4 {[%emt 0:00:30]} Kd6 {[%emt 0:00:30]} 22. Kd2 {[%emt 0:01:30]} a5 {[%emt 0:01:30]} 23. b3 {[%emt 0:01:30]} b5 {[%emt 0:03:30]} 24. a4 {[%emt 0:12:30]} b4 {[%emt 0:01:30]} 25. Rhc1 {[%emt 0:01:30]} Rb8 {[%emt 0:02:30]} 26. c3 {[%emt 0:00:30]} bxc3+ {[%emt 0:01:30]} 27. Rxc3 {[%emt 0:00:30]} Rb6 {[%emt 0:01:30]} 28. Kc2 {[%emt 0:01:30]} Rc8 {[%emt 0:00:30]} 29. Rc5 {[%emt 0:00:30]} Ra8 {[%emt 0:00:30]} 30. Kc3 {[%emt 0:00:30]} Ra7 31. Rb1 {[%emt 0:00:30]} Rb4 {[%emt 0:03:00]} 32. Kb2 {[%emt 0:04:30]} Rb6 {[%emt 0:00:30]} 33. Rbc1 {[%emt 0:00:00]} Raa6 {[%emt 0:03:30]} 34. Ka3 {[%emt 0:00:00]} Ra7 {[%emt 0:01:30]} 35. Ne6 {[%emt 0:06:30]} Bxe6 {[%emt 0:01:30]} 36. fxe6 {[%emt 0:00:30]} Raa6 {[%emt 0:00:00]} 37. R5c3 {[%emt 0:06:30]} Kxe6 {[%emt 0:00:00]} 38. Kb2 {[%emt 0:00:30]} Kd6 {[%emt 0:01:30]} 39. Kc2 {[%emt 0:06:30]} Rb7 {[%emt 0:00:30]} 40. Kd2 {[%emt 0:01:30]} Rf7 {[%emt 0:03:30]} 41. Rf1 {[%emt 0:01:30]} Kc7 {[%emt 0:01:30]} 42. Ke2 {[%emt 0:01:30]} Kb6 {[%emt 0:01:30]} 43. Kf2 {[%emt 0:00:30]} Ra8 {[%emt 0:00:30]} 44. Kg3 {[%emt 0:00:30]} Raf8 {[%emt 0:02:30]} 45. Rfc1 {[%emt 0:03:30]} Rc7 {[%emt 0:00:00]} 46. Kf4 {[%emt 0:00:30]} Rfc8 {[%emt 0:02:00]} 47. Rc5 {[%emt 0:01:30]} Ra8 {[%emt 0:00:30]} 48. Rb1 {[%emt 0:02:30]} Ra6 {[%emt 0:04:30]} 49. b4 {[%emt 0:01:30]} axb4 {[%emt 0:01:30]} 50. Rxb4+ {[%emt 0:00:30]} Ka7 {[%emt 0:00:00]} 51. a5 {[%emt 0:00:00]} Ka8 {[%emt 0:04:00]} 52. Rb6 {[%emt 0:03:00]} Ka7 {[%emt 0:02:16]} 53. Rxa6+ {[%emt 0:01:57]} Kxa6 {[%emt 0:00:30]} 54. Kf5 {[%emt 0:00:00]} Kb7 {[%emt 0:08:02]} 55. Ke6 {[%emt 0:00:00]} Rc8 {[%emt 0:00:18]} 56. Kd7 {[%emt 0:00:27]} Rc7+ {[%emt 0:01:40]} 57. Kd6 {[%emt 0:00:13]} Rc8 {[%emt 0:00:31]} 58. Rc3 {[%emt 0:03:31]} Rd8+ {[%emt 0:01:40]} 59. Ke7 {[%emt 0:00:13]} Rc8 {[%emt 0:00:15]} 60. Kd7 {[%emt 0:00:44]} Rc7+ {[%emt 0:00:26]} 61. Kd6 {[%emt 0:00:08]} Rc8 {[%emt 0:01:03]} 62. Rb3+ {[%emt 0:00:18]} Ka6 {[%emt 0:01:00]} 63. Rb6+ {[%emt 0:01:02]} Kxa5 {[%emt 0:00:42]} 64. Rxc6 {[%emt 0:00:06]} Rd8+ {[%emt 0:00:22]} 65. Ke6 {[%emt 0:00:37]} Kb4 {[%emt 0:00:54]} 66. Rc7 {[%emt 0:04:13]} Kb3 {[%emt 0:01:31]} 67. Rc5 {[%emt 0:03:21]} Kb4 {[%emt 0:00:33]} 68. Rxd5 {[%emt 0:00:15]} Re8+ $2 {[%emt 0:00:32]} (68... Ra8) 69. Kf5 $18 {[%emt 0:02:08]} Kc4 {[%emt 0:00:34]} 70. Rd7 {[%emt 0:00:16]} Kd3 {[%emt 0:00:29]} 71. Kf4 {[%emt 0:00:44]} g5+ {[%emt 0:00:56]} 72. hxg6 {[%emt 0:00:07]} Rg8 {[%emt 0:00:13]} 73. g7 {[%emt 0:00:10]} f5 {[%emt 0:00:59]} 74. gxf5 {[%emt 0:00:40]} h5 {[%emt 0:00:04]} 75. f6 {[%emt 0:00:00]} h4 {[%emt 0:00:24]} 76. Ra7 {[%emt 0:00:42]} h3 {[%emt 0:00:08]} 77. Ra3+ {[%emt 0:00:09]} Kc2 {[%emt 0:00:53]} 78. Kg3 {[%emt 0:00:07]} Kb2 {[%emt 0:00:00]} 79. Ra5 {[%emt 0:00:19]} 1-0

[Event "1st Sivas Buruciye Open 2019"]
[Site "Sivas"]
[Date "2019.08.21"]
[Round "4"]
[White "Demir, Ugur"]
[Black "Amanmuradow, Atajan"]
[Result "0-1"]
[ECO "B01"]
[WhiteElo "1790"]
[BlackElo "1794"]
[Annotator "NA"]
[PlyCount "128"]
[EventDate "2019.08.19"]
[EventType "swiss"]
[EventCountry "TUR"]
[SourceTitle "playchess.com"]
[Source "ChessBase"]
[SourceQuality "1"]
[TimeControl "5400+30"]

1. e4 {[%emt 0:00:30]} d5 {[%emt 0:00:30]} 2. Nf3 {[%emt 0:00:30]} dxe4 {[%emt 0:00:30]} 3. Ng5 {[%emt 0:00:00]} Qd5 {[%emt 0:08:30]} 4. h4 {[%emt 0:03:00]} Nf6 {[%emt 0:06:30]} 5. Nc3 {[%emt 0:00:30]} Qe5 {[%emt 0:07:30]} 6. Bc4 {[%emt 0:04:30]} e6 {[%emt 0:01:30]} 7. Qe2 {[%emt 0:02:30]} h6 {[%emt 0:08:30]} 8. Ngxe4 {[%emt 0:00:30]} a6 {[%emt 0:02:30]} 9. d4 {[%emt 0:18:30]} Qxd4 {[%emt 0:09:30]} 10. Be3 {[%emt 0:02:30]} Qe5 {[%emt 0:00:30]} 11. f4 {[%emt 0:04:30]} Qa5 {[%emt 0:05:30]} 12. Nxf6+ {[%emt 0:03:30]} gxf6 {[%emt 0:00:00]} 13. Bd2 {[%emt 0:00:30]} Bb4 {[%emt 0:22:00]} 14. O-O-O {[%emt 0:14:30]} Bxc3 {[%emt 0:10:57]} 15. Bxc3 {[%emt 0:00:30]} Qf5 {[%emt 0:00:00]} 16. Kb1 {[%emt 0:06:30]} Rg8 {[%emt 0:01:52]} 17. Rd5 {[%emt 0:12:30]} Qxf4 {[%emt 0:04:29]} 18. Rhd1 {[%emt 0:06:27]} Nc6 {[%emt 0:02:14]} 19. R5d3 {[%emt 0:04:01]} e5 {[%emt 0:02:25]} 20. Bd5 {[%emt 0:04:28]} Bg4 {[%emt 0:01:14]} 21. Bf3 {[%emt 0:00:45]} Bxf3 {[%emt 0:00:52]} 22. Rxf3 {[%emt 0:00:23]} Qxh4 {[%emt 0:00:12]} 23. Rdf1 {[%emt 0:01:29]} O-O-O {[%emt 0:01:13]} 24. Rxf6 {[%emt 0:01:23]} Qg5 {[%emt 0:00:46]} 25. Rxf7 {[%emt 0:01:06]} Rg7 {[%emt 0:01:08]} 26. b3 {[%emt 0:02:15]} Kb8 {[%emt 0:01:11]} 27. Kb2 {[%emt 0:01:12]} Qxg2 {[%emt 0:00:19]} 28. R1f2 {[%emt 0:02:26]} Qg5 {[%emt 0:00:18]} 29. R2f5 {[%emt 0:00:49]} Qg6 {[%emt 0:00:17]} 30. R7f6 {[%emt 0:00:41]} Qg2 {[%emt 0:00:26]} 31. Qxg2 {[%emt 0:01:12]} Rxg2 {[%emt 0:00:02]} 32. Rxh6 {[%emt 0:00:00]} Nd4 {[%emt 0:00:48]} 33. Bxd4 {[%emt 0:01:31]} exd4 {[%emt 0:00:02]} 34. Rfh5 {[%emt 0:00:34]} d3 {[%emt 0:00:06]} 35. Rh8 {[%emt 0:00:00]} Rxh8 {[%emt 0:01:42]} 36. Rxh8+ {[%emt 0:00:00]} Ka7 {[%emt 0:00:00]} 37. Rd8 {[%emt 0:00:35]} Rxc2+ {[%emt 0:01:18]} 38. Kb1 {[%emt 0:00:30]} Rd2 {[%emt 0:00:00]} 39. a4 {[%emt 0:00:35]} b5 {[%emt 0:00:10]} 40. axb5 {[%emt 0:00:53]} axb5 {[%emt 0:00:01]} 41. b4 {[%emt 0:00:20]} Kb6 {[%emt 0:00:20]} 42. Rd5 {[%emt 0:00:31]} c6 {[%emt 0:00:23]} 43. Rd6 {[%emt 0:00:22]} Rd1+ {[%emt 0:00:53]} 44. Kb2 {[%emt 0:00:10]} d2 {[%emt 0:00:23]} 45. Kc2 {[%emt 0:00:52]} Rc1+ {[%emt 0:00:03]} 46. Kxd2 {[%emt 0:00:45]} Rc4 {[%emt 0:00:02]} 47. Kd3 {[%emt 0:00:13]} Rxb4 {[%emt 0:00:30]} 48. Kc3 {[%emt 0:00:08]} Rh4 {[%emt 0:00:00]} 49. Rg6 {[%emt 0:00:23]} b4+ {[%emt 0:00:00]} 50. Kb3 {[%emt 0:01:29]} Kb5 {[%emt 0:00:00]} 51. Rg8 {[%emt 0:00:00]} Rh3+ {[%emt 0:00:00]} 52. Kb2 {[%emt 0:00:31]} c5 {[%emt 0:00:00]} 53. Rg7 {[%emt 0:00:19]} c4 {[%emt 0:00:42]} 54. Rb7+ {[%emt 0:00:29]} Ka5 {[%emt 0:00:15]} 55. Rb8 {[%emt 0:01:04]} Rh2+ {[%emt 0:00:03]} 56. Kc1 {[%emt 0:00:21]} c3 {[%emt 0:00:12]} 57. Rb7 {[%emt 0:00:49]} Ka4 {[%emt 0:00:03]} 58. Rg7 {[%emt 0:00:36]} b3 {[%emt 0:00:43]} 59. Ra7+ {[%emt 0:00:43]} Kb4 {[%emt 0:00:01]} 60. Rb7+ {[%emt 0:00:00]} Kc4 {[%emt 0:00:04]} 61. Rc7+ {[%emt 0:00:29]} Kd4 {[%emt 0:00:01]} 62. Rd7+ {[%emt 0:00:22]} Ke5 {[%emt 0:00:05]} 63. Re7+ {[%emt 0:00:54]} Kd6 {[%emt 0:00:01]} 64. Re1 {[%emt 0:00:00]} Ra2 {[%emt 0:00:08]} 0-1

[Event "1st Sivas Buruciye Open 2019"]
[Site "Sivas"]
[Date "2019.08.21"]
[Round "4"]
[White "Taze, Bulent"]
[Black "Copur, Bulent"]
[Result "1/2-1/2"]
[ECO "D15"]
[WhiteElo "1743"]
[BlackElo "1611"]
[Annotator "NA"]
[PlyCount "23"]
[EventDate "2019.08.19"]
[EventType "swiss"]
[EventCountry "TUR"]
[SourceTitle "playchess.com"]
[Source "ChessBase"]
[SourceQuality "1"]
[TimeControl "5400+30"]

1. d4 {[%emt 0:00:30]} d5 {[%emt 0:00:30]} 2. c4 {[%emt 0:00:30]} c6 {[%emt 0:00:30]} 3. Nc3 {[%emt 0:00:00]} Nf6 {[%emt 0:05:30]} 4. e3 {[%emt 0:01:00]} g6 {[%emt 0:00:30]} 5. Nf3 {[%emt 0:02:30]} Bg7 {[%emt 0:06:30]} 6. cxd5 {[%emt 0:02:30]} cxd5 {[%emt 0:07:30]} 7. Bd3 {[%emt 0:03:30]} O-O {[%emt 0:00:30]} 8. O-O {[%emt 0:00:30]} Nc6 {[%emt 0:03:30]} 9. a3 {[%emt 0:00:30]} a6 {[%emt 0:04:30]} 10. h3 {[%emt 0:01:30]} Re8 {[%emt 0:05:30]} 11. Bd2 {[%emt 0:00:30]} e6 {[%emt 0:05:30]} 12. Rc1 {[%emt 0:00:00]} 1/2-1/2

[Event "1st Sivas Buruciye Open 2019"]
[Site "Sivas"]
[Date "2019.08.21"]
[Round "5"]
[White "Sandalakis, Angelos"]
[Black "Yarashov, Azat"]
[Result "1/2-1/2"]
[ECO "B07"]
[WhiteElo "2439"]
[BlackElo "2156"]
[Annotator "NA"]
[PlyCount "107"]
[EventDate "2019.08.19"]
[EventType "swiss"]
[EventCountry "TUR"]
[SourceTitle "playchess.com"]
[Source "ChessBase"]
[SourceQuality "1"]
[TimeControl "5400+30"]

1. e4 {[%emt 0:00:30]} c6 {[%emt 0:00:30]} 2. Nc3 {[%emt 0:00:30]} d6 {[%emt 0:03:30]} 3. d4 {[%emt 0:00:30]} Nf6 {[%emt 0:00:00]} 4. Nf3 {[%emt 0:00:30]} Nbd7 {[%emt 0:01:00]} 5. e5 {[%emt 0:01:30]} Nd5 6. e6 fxe6 7. Bd3 Nxc3 8. bxc3 Nf6 9. O-O g6 10. Re1 Bg7 11. Ng5 O-O 12. Nxe6 Bxe6 13. Rxe6 Rf7 14. Qe1 Qd7 15. Bg5 Rc8 16. Rd1 Kf8 17. h4 c5 18. Bxf6 Rxf6 19. d5 c4 20. Bf1 Rxe6 21. dxe6 Qb5 22. Rb1 Qd5 23. Qe3 b6 24. a4 Bf6 25. Rb4 Kg7 26. g3 Qe5 27. Qxe5 Bxe5 28. Rxc4 Rxc4 29. Bxc4 Bxc3 30. Kg2 Kf6 31. f4 Be1 32. Kf3 Bc3 {[%emt 1:11:00]} 33. Bd5 {[%emt 1:09:00]} Be1 34. c4 {[%emt 0:00:00]} Bb4 35. Kf2 Bc3 36. g4 Bd2 37. Kf3 h6 38. g5+ hxg5 {[%emt 0:03:00]} 39. hxg5+ Kg7 40. Kg4 Bc1 41. Bc6 Bb2 42. Be8 a5 43. f5 gxf5+ 44. Kxf5 Bc1 45. Bf7 Bd2 46. g6 {[%emt 0:05:30]} Be1 {[%emt 0:06:00]} 47. Ke4 Bf2 48. Kd5 Bg1 49. Kc6 Bd4 50. Kc7 Kf8 51. Kd7 Bf6 52. Kc6 Bd4 53. Kc7 Kg7 54. Kc6 1/2-1/2

[Event "1st Sivas Buruciye Open 2019"]
[Site "Sivas"]
[Date "2019.08.21"]
[Round "5"]
[White "Saraci, Nderim"]
[Black "Temizkan, Denizcan"]
[Result "1-0"]
[ECO "C50"]
[WhiteElo "2398"]
[BlackElo "2175"]
[Annotator "NA"]
[PlyCount "87"]
[EventDate "2019.08.19"]
[EventType "swiss"]
[EventCountry "TUR"]
[SourceTitle "playchess.com"]
[Source "ChessBase"]
[SourceQuality "1"]
[TimeControl "5400+30"]

1. e4 {[%emt 0:00:30]} e5 {[%emt 0:00:30]} 2. Nf3 {[%emt 0:00:30]} Nc6 {[%emt 0:00:30]} 3. Bc4 {[%emt 0:00:30]} Be7 {[%emt 0:00:30]} 4. O-O {[%emt 0:00:30]} Nf6 {[%emt 0:00:00]} 5. d4 {[%emt 0:01:30]} d6 {[%emt 0:03:00]} 6. Re1 {[%emt 0:04:30]} O-O {[%emt 0:00:30]} 7. h3 {[%emt 0:00:30]} h6 {[%emt 0:04:30]} 8. Nc3 {[%emt 0:04:30]} Nh7 {[%emt 0:14:30]} 9. Nd5 {[%emt 0:04:30]} Ng5 {[%emt 0:02:30]} 10. Nxe7+ {[%emt 0:00:30]} Qxe7 {[%emt 0:00:30]} 11. Nxg5 {[%emt 0:04:30]} hxg5 {[%emt 0:00:00]} 12. Qh5 {[%emt 0:04:30]} exd4 {[%emt 0:35:00]} 13. Bxg5 {[%emt 0:00:30]} Qe5 {[%emt 0:00:30]} 14. Bd5 {[%emt 0:15:30]} Be6 {[%emt 0:03:30]} 15. f4 {[%emt 0:02:30]} g6 {[%emt 0:00:30]} 16. Qh4 {[%emt 0:09:30]} Qh8 {[%emt 0:01:30]} 17. Qxh8+ {[%emt 0:00:30]} Kxh8 {[%emt 0:00:00]} 18. Bf6+ {[%emt 0:00:30]} Kg8 {[%emt 0:00:00]} 19. a3 {[%emt 0:01:30]} Rfe8 {[%emt 0:01:30]} 20. Kf2 {[%emt 0:01:30]} Ne7 {[%emt 0:05:30]} 21. Bxe6 {[%emt 0:04:30]} fxe6 {[%emt 0:00:30]} 22. Bxd4 {[%emt 0:00:30]} Rf8 {[%emt 0:00:00]} 23. Kg3 {[%emt 0:01:30]} Rf7 {[%emt 0:05:00]} 24. Kg4 {[%emt 0:01:30]} Raf8 {[%emt 0:00:30]} 25. g3 {[%emt 0:00:00]} c5 {[%emt 0:06:08]} 26. Be3 {[%emt 0:02:00]} Nc6 {[%emt 0:00:23]} 27. Rad1 {[%emt 0:00:30]} Rd8 {[%emt 0:00:05]} 28. e5 {[%emt 0:04:30]} dxe5 {[%emt 0:00:20]} 29. Rxd8+ {[%emt 0:00:30]} Nxd8 {[%emt 0:00:04]} 30. fxe5 {[%emt 0:05:30]} b6 {[%emt 0:01:52]} 31. Bf4 {[%emt 0:06:04]} Nc6 {[%emt 0:00:40]} 32. h4 {[%emt 0:01:51]} Rf5 {[%emt 0:01:18]} 33. c3 {[%emt 0:01:03]} Ne7 {[%emt 0:00:32]} 34. Kf3 {[%emt 0:02:46]} Nd5 {[%emt 0:01:20]} 35. c4 {[%emt 0:01:17]} Ne7 {[%emt 0:00:04]} 36. Rd1 {[%emt 0:01:26]} Nc6 {[%emt 0:00:06]} 37. Ke4 {[%emt 0:00:03]} Nd4 {[%emt 0:01:56]} 38. b4 {[%emt 0:02:00]} a5 {[%emt 0:02:49]} 39. bxc5 {[%emt 0:00:45]} bxc5 {[%emt 0:00:04]} 40. Rb1 {[%emt 0:00:36]} Rf7 {[%emt 0:01:53]} 41. Rb8+ {[%emt 0:00:48]} Rf8 {[%emt 0:00:43]} 42. Rxf8+ {[%emt 0:00:43]} Kxf8 {[%emt 0:00:06]} 43. Be3 {[%emt 0:00:14]} Nb3 {[%emt 0:00:34]} 44. a4 {[%emt 0:00:14]} 1-0

[Event "1st Sivas Buruciye Open 2019"]
[Site "Sivas"]
[Date "2019.08.21"]
[Round "5"]
[White "Lortkipanidze, Nodar"]
[Black "Tofan, Ibrahim"]
[Result "1-0"]
[ECO "C25"]
[WhiteElo "2336"]
[BlackElo "2055"]
[Annotator "NA"]
[PlyCount "33"]
[EventDate "2019.08.19"]
[EventType "swiss"]
[EventCountry "TUR"]
[SourceTitle "playchess.com"]
[Source "ChessBase"]
[SourceQuality "1"]
[TimeControl "5400+30"]

1. e4 {[%emt 0:00:30]} e5 {[%emt 0:00:30]} 2. Nc3 {[%emt 0:00:30]} Nc6 {[%emt 0:00:30]} 3. f4 {[%emt 0:00:30]} Bc5 {[%emt 0:00:30]} 4. fxe5 {[%emt 0:02:30]} Qe7 {[%emt 0:08:30]} 5. Nf3 {[%emt 0:01:30]} Nxe5 {[%emt 0:00:30]} 6. Nd5 {[%emt 0:00:00]} Nxf3+ {[%emt 0:05:30]} 7. Qxf3 {[%emt 0:00:00]} Qh4+ {[%emt 0:00:30]} 8. g3 {[%emt 0:00:30]} Qd8 {[%emt 0:00:30]} 9. Qc3 {[%emt 0:00:30]} c6 {[%emt 0:08:30]} 10. Qxg7 {[%emt 0:00:30]} cxd5 {[%emt 0:00:30]} 11. Qxh8 {[%emt 0:00:30]} Ke7 {[%emt 0:12:30]} 12. d4 {[%emt 0:00:30]} Bb6 {[%emt 0:01:30]} 13. Bg5+ {[%emt 0:00:30]} f6 {[%emt 0:00:30]} 14. Qg7+ {[%emt 0:00:30]} Ke6 {[%emt 0:01:30]} 15. exd5+ {[%emt 0:00:30]} Kxd5 {[%emt 0:01:30]} 16. Qf7+ {[%emt 0:00:00]} Kc6 {[%emt 0:01:30]} 17. Bb5+ {[%emt 0:01:00]} 1-0

[Event "1st Sivas Buruciye Open 2019"]
[Site "Sivas"]
[Date "2019.08.21"]
[Round "5"]
[White "Babayev, Talib"]
[Black "Annaberdiev, Meilis"]
[Result "0-1"]
[ECO "B42"]
[WhiteElo "2288"]
[BlackElo "2518"]
[Annotator "ChessBase"]
[PlyCount "100"]
[EventDate "2019.08.19"]
[EventType "swiss"]
[EventCountry "TUR"]
[SourceTitle "playchess.com"]
[Source "ChessBase"]
[SourceQuality "1"]
[TimeControl "5400+30"]

1. e4 {[%emt 0:00:30]} c5 {[%emt 0:00:30]} 2. Nf3 {[%emt 0:00:30]} e6 {[%emt 0:00:30]} 3. d4 {[%emt 0:00:30]} cxd4 {[%emt 0:00:30]} 4. Nxd4 {[%emt 0:00:30]} a6 {[%emt 0:00:30]} 5. Bd3 {[%emt 0:00:30]} g6 {[%emt 0:00:30]} 6. Be3 {[%emt 0:00:30]} Bg7 {[%emt 0:00:30]} 7. O-O {[%emt 0:00:30]} Ne7 {[%emt 0:00:00]} 8. Nd2 {[%emt 0:00:00]} O-O {[%emt 0:00:00]} 9. c3 {[%emt 0:00:00]} d5 {[%emt 0:00:00]} 10. Qe2 {[%emt 0:00:30]} Nd7 {[%emt 0:15:00]} 11. Bg5 {[%emt 0:02:30]} Nc5 {[%emt 0:09:30]} 12. exd5 {[%emt 0:00:30]} f6 {[%emt 0:02:30]} 13. Bh4 {[%emt 0:07:30]} Nxd3 {[%emt 0:02:30]} 14. Qxd3 {[%emt 0:00:00]} e5 {[%emt 0:01:30]} 15. N4b3 {[%emt 0:01:00]} Qxd5 {[%emt 0:02:30]} 16. Qxd5+ {[%emt 0:07:30]} Nxd5 {[%emt 0:00:30]} 17. Nc4 {[%emt 0:00:30]} b6 {[%emt 0:05:30]} 18. Rad1 {[%emt 0:03:30]} Be6 {[%emt 0:03:30]} 19. Rfe1 {[%emt 0:00:30]} Nxc3 {[%emt 0:03:30]} 20. Nxb6 {[%emt 0:03:30]} Nxd1 {[%emt 0:01:30]} 21. Nxa8 {[%emt 0:00:00]} Bxb3 {[%emt 0:07:30]} 22. axb3 {[%emt 0:00:00]} Nxf2 {[%emt 0:00:00]} 23. Nc7 {[%emt 0:03:30]} Nd3 {[%emt 0:00:00]} 24. Rd1 {[%emt 0:00:30]} e4 {[%emt 0:00:30]} 25. Nxa6 {[%emt 0:02:30]} Rc8 {[%emt 0:00:00]} 26. b4 {[%emt 0:01:30]} f5 {[%emt 0:00:00]} 27. b5 {[%emt 0:07:30]} Bd4+ {[%emt 0:15:30]} 28. Kf1 {[%emt 0:02:30]} Bb6 {[%emt 0:00:30]} 29. b4 {[%emt 0:03:30]} Rc2 {[%emt 0:00:30]} 30. Nc5 {[%emt 0:04:30]} Nxc5 {[%emt 0:12:37]} 31. bxc5 {[%emt 0:00:30]} Bxc5 {[%emt 0:00:15]} 32. Rd5 {[%emt 0:09:30]} e3 {[%emt 0:01:39]} 33. Re5 {[%emt 0:00:30]} Bd4 {[%emt 0:00:16]} 34. Re6 {[%emt 0:01:30]} Kf7 {[%emt 0:01:05]} 35. Re7+ {[%emt 0:00:30]} Kf8 {[%emt 0:00:00]} 36. Re6 {[%emt 0:07:30]} Rb2 {[%emt 0:00:03]} 37. h3 {[%emt 0:01:30]} h6 {[%emt 0:01:51]} 38. g4 {[%emt 0:01:30]} g5 {[%emt 0:01:53]} 39. Be1 {[%emt 0:00:00]} f4 {[%emt 0:00:35]} 40. Re4 {[%emt 0:00:00]} Bc5 {[%emt 0:04:34]} 41. Re5 {[%emt 0:01:30]} Bb6 {[%emt 0:00:21]} 42. h4 {[%emt 0:04:30]} gxh4 {[%emt 0:03:01]} 43. Re6 {[%emt 0:00:00]} Bd8 {[%emt 0:05:12]} 44. Rxh6 {[%emt 0:02:00]} Rb1 {[%emt 0:01:15]} 45. Rh8+ {[%emt 0:03:30]} Ke7 {[%emt 0:01:03]} 46. Ke2 {[%emt 0:01:30]} Rxe1+ {[%emt 0:00:23]} 47. Kxe1 {[%emt 0:00:30]} f3 {[%emt 0:00:00]} 48. Rh7+ {[%emt 0:01:42]} Kd6 {[%emt 0:00:29]} 49. Ra7 {[%emt 0:00:30]} h3 {[%emt 0:00:00]} 50. g5 {[%emt 0:03:49]} h2 {[%emt 0:00:36]} 0-1

[Event "1st Sivas Buruciye Open 2019"]
[Site "Sivas"]
[Date "2019.08.21"]
[Round "5"]
[White "Aliyev, Rasim"]
[Black "Abdulov, Orkhan"]
[Result "1/2-1/2"]
[ECO "C60"]
[WhiteElo "2139"]
[BlackElo "2397"]
[Annotator "NA"]
[PlyCount "97"]
[EventDate "2019.08.19"]
[EventType "swiss"]
[EventCountry "TUR"]
[SourceTitle "playchess.com"]
[Source "ChessBase"]
[SourceQuality "1"]
[TimeControl "5400+30"]

1. e4 {[%emt 0:00:30]} e5 {[%emt 0:09:30]} 2. Nf3 {[%emt 0:00:00]} Nc6 {[%emt 0:00:30]} 3. Bb5 {[%emt 0:00:00]} a6 {[%emt 0:00:00]} 4. Ba4 {[%emt 0:00:00]} Nge7 {[%emt 0:00:00]} 5. O-O {[%emt 0:01:00]} g6 {[%emt 0:00:30]} 6. d4 {[%emt 0:01:30]} exd4 {[%emt 0:04:30]} 7. Nxd4 {[%emt 0:01:30]} b5 {[%emt 0:00:30]} 8. Bb3 {[%emt 0:00:30]} Bg7 {[%emt 0:00:30]} 9. c3 {[%emt 0:00:30]} O-O {[%emt 0:00:30]} 10. Bg5 {[%emt 0:00:30]} Na5 {[%emt 0:02:30]} 11. Nd2 {[%emt 0:05:30]} Nxb3 {[%emt 0:02:30]} 12. N2xb3 {[%emt 0:03:30]} f6 {[%emt 0:03:30]} 13. Bh4 {[%emt 0:04:30]} d6 {[%emt 0:02:30]} 14. Re1 {[%emt 0:05:30]} Qd7 {[%emt 0:00:30]} 15. Qc2 {[%emt 0:04:30]} a5 {[%emt 0:08:30]} 16. c4 {[%emt 0:09:30]} a4 {[%emt 0:03:30]} 17. Nd2 {[%emt 0:01:30]} g5 {[%emt 0:00:30]} 18. Bg3 {[%emt 0:01:30]} f5 {[%emt 0:00:30]} 19. exf5 {[%emt 0:17:30]} Bxd4 {[%emt 0:05:30]} 20. Qe4 {[%emt 0:00:30]} Bxb2 {[%emt 0:07:30]} 21. Rab1 {[%emt 0:00:30]} d5 {[%emt 0:11:30]} 22. cxd5 {[%emt 0:08:30]} Bc3 {[%emt 0:03:30]} 23. d6 {[%emt 0:03:30]} cxd6 {[%emt 0:01:30]} 24. Qxa8 {[%emt 0:09:30]} Bb7 {[%emt 0:01:30]} 25. Qa7 {[%emt 0:00:30]} Bxd2 {[%emt 0:00:30]} 26. Red1 {[%emt 0:00:30]} Bf4 {[%emt 0:00:30]} 27. Bxf4 {[%emt 0:01:08]} gxf4 {[%emt 0:00:30]} 28. Qd4 {[%emt 0:00:54]} Rxf5 {[%emt 0:02:30]} 29. Qxd6 {[%emt 0:02:10]} Qxd6 {[%emt 0:01:30]} 30. Rxd6 {[%emt 0:00:02]} Re5 {[%emt 0:00:30]} 31. f3 {[%emt 0:02:42]} Bc6 {[%emt 0:02:30]} 32. Rb2 {[%emt 0:07:59]} Be8 {[%emt 0:01:30]} 33. g3 {[%emt 0:01:56]} fxg3 {[%emt 0:03:30]} 34. hxg3 {[%emt 0:00:11]} Bf7 {[%emt 0:00:00]} 35. Kf2 {[%emt 0:00:35]} Bc4 {[%emt 0:00:00]} 36. f4 {[%emt 0:02:27]} Rh5 {[%emt 0:00:30]} 37. Kf3 {[%emt 0:01:07]} Rh1 {[%emt 0:00:00]} 38. g4 {[%emt 0:00:48]} Ra1 {[%emt 0:01:00]} 39. Rd7 {[%emt 0:01:31]} Kf8 {[%emt 0:01:30]} 40. Rh2 {[%emt 0:00:35]} Bd5+ {[%emt 0:04:35]} 41. Ke3 {[%emt 0:00:45]} Bg8 {[%emt 0:00:37]} 42. Rb2 {[%emt 0:02:04]} b4 {[%emt 0:01:54]} 43. Rxb4 {[%emt 0:01:18]} Nd5+ {[%emt 0:00:30]} 44. Rxd5 {[%emt 0:00:30]} Bxd5 {[%emt 0:00:30]} 45. Rxa4 {[%emt 0:00:30]} Bxa2 {[%emt 0:01:30]} 46. Ra5 {[%emt 0:00:00]} h6 {[%emt 0:01:00]} 47. Kf2 {[%emt 0:00:25]} Ke7 {[%emt 0:00:19]} 48. Kg3 {[%emt 0:00:47]} Kd7 {[%emt 0:00:09]} 49. Ra6 {[%emt 0:00:22]} 1/2-1/2